bitfinex/quotes_SOLUSD_20250204
["timestamp","ask_amount","ask_price","bid_price","bid_amount"]
[1738647921389,45.27905569,202.7,202.67,0.0001]
[1738647921571,46.39124569,202.68,202.67,0.0001]
[1738647921885,105.08214991,202.68,202.67,0.0001]
[1738647922056,91.54481138,202.68,202.67,0.0001]
[1738647922258,105.08214991,202.68,202.67,0.0001]
[1738647922859,106.08214991,202.68,202.67,0.0001]
[1738647923261,106.08214991,202.68,202.5,45.27905569]
[1738647923262,0.12549,202.67,202.5,45.27905569]
[1738647923462,45.27905569,202.59,202.5,45.27905569]
[1738647923767,0.73903365,202.66,202.58,45.27905569]
[1738647923768,45.27905569,202.66,202.58,45.27905569]
[1738647924089,45.27905569,202.66,202.52,45.27905569]
[1738647924090,45.27905569,202.6,202.52,45.27905569]
[1738647924293,45.27905569,202.56,202.48,45.27905569]
[1738647924790,45.27905569,202.52,202.44,45.27905569]
[1738647924995,0.73903365,202.51,202.44,45.27905569]
[1738647925195,45.27905569,202.5,202.42,45.27905569]
[1738647925655,46.26665569,202.5,202.42,45.27905569]
[1738647925979,45.27905569,202.48,202.4,45.27905569]
[1738647926393,45.27905569,202.54,202.46,45.27905569]
[1738647926693,45.27905569,202.52,202.44,45.27905569]
[1738647927202,45.27905569,202.46,202.38,45.27905569]
[1738647927359,45.27905569,202.44,202.36,45.27905569]
[1738647927986,45.27905569,202.52,202.42,45.27905569]
[1738647928322,45.27905569,202.52,202.41,45.27905569]
[1738647928323,45.27905569,202.5,202.41,45.27905569]
[1738647928481,45.27905569,202.48,202.41,45.27905569]
[1738647928787,45.27905569,202.46,202.38,45.27905569]
[1738647928973,45.27905569,202.48,202.4,45.27905569]
[1738647929176,45.27905569,202.48,202.34,10.0951]
[1738647929177,45.27905569,202.53,202.45,45.27905569]
[1738647929372,46.01808934,202.53,202.47,45.27905569]
[1738647929588,45.27905569,202.53,202.47,45.27905569]
[1738647929779,0.73903365,202.58,202.51,45.27905569]
[1738647929984,45.27905569,202.61,202.53,45.27905569]
[1738647930172,47.00488934,202.67,202.59,45.27905569]
[1738647930365,45.27905569,202.71,202.62,45.27905569]
[1738647930696,45.27905569,202.69,202.6,45.27905569]
[1738647930855,46.01808934,202.71,202.64,45.27905569]
[1738647931297,0.80203365,202.76,202.7,45.27905569]
[1738647931462,0.063,202.76,202.75,45.27905569]
[1738647932052,14.7695,202.96,202.76,4.9319]
[1738647932053,45.27905569,202.91,202.76,4.9319]
[1738647932374,46.01808934,202.93,202.84,45.27905569]
[1738647932577,0.063,202.97,202.92,45.27905569]
[1738647932765,0.063,202.97,202.94,45.27905569]
[1738647932960,0.063,202.97,202.96,65.27905569]
[1738647933173,0.063,202.97,202.96,45.27905569]
[1738647933697,0.063,202.97,202.92,45.27905569]
[1738647933898,45.27905569,202.95,202.88,45.27905569]
[1738647934088,45.34205569,202.97,202.88,45.27905569]
[1738647934283,45.27905569,202.93,202.86,45.27905569]
[1738647934596,45.27905569,202.95,202.86,45.27905569]
[1738647934801,0.73903365,202.94,202.86,45.27905569]
[1738647934972,0.80203365,202.97,202.9,45.27905569]
[1738647935168,0.73903365,202.96,202.88,45.27905569]
[1738647935480,45.34205569,202.97,202.88,45.27905569]
[1738647935801,0.73903365,202.96,202.9,45.27905569]
[1738647935971,0.063,202.97,202.94,45.27905569]
[1738647936169,0.063,202.97,202.96,45.27905569]
[1738647936690,0.063,202.97,202.95,45.27905569]
[1738647936903,0.063,202.97,202.93,45.27905569]
[1738647937202,0.063,202.97,202.87,1.0]
[1738647937203,0.063,202.97,202.95,45.27905569]
[1738647937710,0.063,202.97,202.91,45.27905569]
[1738647938004,45.27905569,202.95,202.87,45.27905569]
[1738647938181,0.80203365,202.97,202.85,45.27905569]
[1738647938182,45.27905569,202.93,202.85,45.27905569]
[1738647938369,45.27905569,202.91,202.85,45.27905569]
[1738647938566,45.27905569,202.91,202.83,45.27905569]
[1738647938772,45.27905569,202.93,202.85,45.27905569]
[1738647939078,45.27905569,202.91,202.83,45.27905569]
[1738647939398,45.27905569,202.91,202.75,21.6832]
[1738647939399,45.27905569,202.87,202.79,45.27905569]
[1738647939567,45.27905569,202.94,202.86,45.27905569]
[1738647939768,0.73903365,202.95,202.88,45.27905569]
[1738647939984,46.01808934,203.02,202.92,45.27905569]
[1738647940173,0.985,203.04,202.96,45.27905569]
[1738647940174,0.985,203.03,202.96,45.27905569]
[1738647940394,0.985,203.03,202.87,1.0]
[1738647940395,45.27905569,203.02,202.94,45.27905569]
[1738647940594,45.27905569,203.0,202.92,45.27905569]
[1738647940791,45.27905569,202.94,202.86,45.27905569]
[1738647941005,45.27905569,202.9,202.82,45.27905569]
[1738647941302,0.73903365,202.93,202.84,45.27905569]
[1738647941303,45.27905569,202.92,202.84,45.27905569]
[1738647941515,45.27905569,202.92,202.79,13.41184853]
[1738647941516,0.063,202.97,202.9,45.27905569]
[1738647941683,0.80203365,202.97,202.9,45.27905569]
[1738647942194,45.27905569,202.91,202.83,45.27905569]
[1738647942384,0.73903365,202.9,202.83,45.27905569]
[1738647942583,45.27905569,202.89,202.81,45.27905569]
[1738647942779,45.27905569,202.91,202.81,45.27905569]
[1738647943001,45.27905569,202.93,202.85,45.27905569]
[1738647943221,45.27905569,202.91,202.83,45.27905569]
[1738647943430,0.73903365,202.9,202.79,45.27905569]
[1738647943643,45.27905569,202.8,202.76,0.03]
[1738647943792,46.26535569,202.77,202.76,0.03]
[1738647944298,0.73903365,202.79,202.76,0.03]
[1738647944299,46.01808934,202.79,202.76,0.03]
[1738647944525,0.12549,202.83,202.76,45.30905569]
[1738647944526,0.9861,202.82,202.76,45.30905569]
[1738647944825,47.00408934,202.83,202.76,0.03]
[1738647945123,9.9166,202.97,202.76,0.03]
[1738647945124,45.27905569,202.85,202.76,45.30905569]
[1738647945333,0.73903365,202.84,202.76,45.30905569]
[1738647945640,45.27905569,202.79,202.76,0.03]
[1738647945926,0.73903365,202.78,202.76,0.03]
[1738647946235,0.73903365,202.84,202.76,45.30905569]
[1738647946404,0.73903365,202.84,202.78,45.27905569]
[1738647946724,45.27905569,202.79,202.76,0.03]
[1738647946902,45.27905569,202.77,202.76,0.03]
[1738647947106,0.12549,202.83,202.76,0.03]
[1738647947107,45.27905569,202.79,202.76,0.03]
[1738647947418,0.12549,202.76,202.64,45.27905569]
[1738647947595,46.01808934,202.75,202.66,45.27905569]
[1738647947996,46.01808934,202.75,202.68,45.27905569]
[1738647948309,45.27905569,202.79,202.72,45.27905569]
[1738647948528,0.73903365,202.78,202.72,45.27905569]
[1738647948723,45.27905569,202.81,202.74,45.27905569]
[1738647949045,46.01808934,202.83,202.76,45.27905569]
[1738647949209,1.0,202.92,202.78,45.27905569]
[1738647949210,46.26495569,202.85,202.78,45.27905569]
[1738647949406,45.27905569,202.87,202.78,45.27905569]
[1738647949622,45.27905569,202.87,202.74,1.0]
[1738647949623,0.73903365,202.86,202.8,45.27905569]
[1738647949847,45.27905569,202.81,202.72,45.27905569]
[1738647950016,1.72513365,202.8,202.72,45.27905569]
[1738647950842,45.27905569,202.75,202.66,45.27905569]
[1738647951016,46.01808934,202.79,202.71,45.27905569]
[1738647951549,45.27905569,202.75,202.69,45.27905569]
[1738647951761,1.0,202.56,202.46,45.27905569]
[1738647951949,1.0,202.56,202.32,61.18134102]
[1738647951950,1.0,202.5,202.32,14.90228533]
[1738647952137,45.27905569,202.34,202.32,14.90228533]
[1738647952318,63.08719895,202.34,202.2,19.763213]
[1738647952627,45.27905569,202.24,202.18,1.0]
[1738647952824,24.4577126,202.32,202.24,2.0]
[1738647953036,24.6542217,202.35,202.29,1.0]
[1738647953355,45.27905569,202.37,202.33,1.0]
[1738647953559,24.73537837,202.39,202.26,1.0]
[1738647953849,45.27905569,202.27,202.21,4.9751]
[1738647954050,45.27905569,202.29,202.23,0.25098]
[1738647954250,45.27905569,202.37,202.31,1.0]
[1738647954438,45.27905569,202.35,202.33,0.03]
[1738647954626,45.27905569,202.34,202.33,0.03]
[1738647954833,45.27905569,202.36,202.33,0.03]
[1738647955242,1.0,202.39,202.33,0.03]
[1738647955416,1.0,202.39,202.33,45.30905569]
[1738647955615,1.0,202.39,202.33,0.03]
[1738647955616,46.27905569,202.36,202.33,0.03]
[1738647955924,25.15795384,202.4,202.33,0.03]
[1738647955925,46.27905569,202.34,202.33,0.03]
[1738647956652,45.27905569,202.36,202.33,0.03]
[1738647956855,2.47,202.43,202.33,0.03]
[1738647956856,1.0,202.38,202.33,0.03]
[1738647957159,1.0,202.38,202.33,45.30905569]
[1738647957320,1.0,202.38,202.33,0.03]
[1738647957634,1.0,202.35,202.33,0.03]
[1738647957820,45.27905569,202.34,202.33,0.03]
[1738647958021,47.00648934,202.34,202.33,0.03]
[1738647958221,46.26745569,202.34,202.33,0.03]
[1738647958675,47.00648934,202.34,202.33,0.03]
[1738647959378,45.27905569,202.24,202.16,45.27905569]
[1738647959539,1.0,202.23,202.16,45.27905569]
[1738647960038,1.9887,202.27,202.18,45.27905569]
[1738647960235,1.0,202.29,202.24,45.27905569]
[1738647960549,1.0,202.33,202.28,45.27905569]
[1738647960739,46.27905569,202.37,202.28,45.27905569]
[1738647960938,1.0,202.34,202.26,45.27905569]
[1738647961175,46.27905569,202.27,202.18,45.27905569]
[1738647961432,46.27905569,202.25,202.18,45.27905569]
[1738647961671,1.0,202.21,202.16,45.27905569]
[1738647961968,2.4836,202.21,202.14,45.27905569]
[1738647962140,1.0,202.16,202.1,45.27905569]
[1738647962664,1.0,202.16,202.07,4.9486]
[1738647962665,1.0,202.14,202.08,45.27905569]
[1738647962873,46.27905569,202.18,202.1,45.27905569]
[1738647963047,1.4836,202.21,202.12,45.27905569]
[1738647963048,46.76265569,202.2,202.12,45.27905569]
[1738647963258,45.27905569,202.14,202.08,45.27905569]
[1738647963476,1.0,202.13,202.08,45.27905569]
[1738647963679,1.0,202.11,202.06,45.27905569]
[1738647964081,45.27905569,202.15,202.07,45.27905569]
[1738647964507,45.27905569,202.13,202.06,45.27905569]
[1738647964669,45.27905569,202.12,202.04,50.16945569]
[1738647964873,45.27905569,202.11,202.03,45.27905569]
[1738647965091,45.27905569,202.04,201.97,4.9511]
[1738647965274,45.27905569,202.01,201.93,45.27905569]
[1738647965466,0.73903365,202.1,201.93,45.27905569]
[1738647965467,0.73903365,202.1,201.99,45.27905569]
[1738647965684,0.73903365,202.13,202.01,45.27905569]
[1738647965882,45.27905569,202.09,202.01,45.27905569]
[1738647966081,45.27905569,202.07,201.99,50.22955569]
[1738647966304,45.27905569,202.07,201.99,45.27905569]
[1738647966873,45.27905569,202.01,201.93,45.27905569]
[1738647967088,45.27905569,202.05,201.9,4.9529]
[1738647967089,45.27905569,201.97,201.9,4.9529]
[1738647967315,45.27905569,201.95,201.89,0.06567296]
[1738647967608,45.27905569,201.9,201.89,0.06567296]
[1738647968478,46.01808934,201.9,201.89,0.06567296]
[1738647968708,45.27905569,201.9,201.89,0.06567296]
[1738647969004,45.27905569,201.94,201.89,0.06567296]
[1738647969305,45.27905569,202.02,201.93,45.27905569]
[1738647969508,45.27905569,202.06,201.97,45.27905569]
[1738647969869,45.27905569,202.06,201.99,45.27905569]
[1738647970077,45.27905569,202.06,201.97,45.27905569]
[1738647970306,45.27905569,202.06,201.9,17.3352]
[1738647970307,45.27905569,202.08,201.99,45.27905569]
[1738647970475,0.73903365,202.13,202.03,45.27905569]
[1738647970679,45.27905569,202.15,202.07,45.27905569]
[1738647970895,46.01808934,202.15,202.05,45.27905569]
[1738647971099,45.27905569,202.13,202.05,45.27905569]
[1738647971275,46.01808934,202.17,202.09,45.27905569]
[1738647971479,45.27905569,202.27,202.15,45.27905569]
[1738647971797,45.27905569,202.27,202.2,45.27905569]
[1738647972481,45.27905569,202.27,202.18,45.27905569]
[1738647972678,45.27905569,202.23,202.14,45.27905569]
[1738647972893,45.27905569,202.19,202.12,45.27905569]
[1738647973092,45.27905569,202.25,202.16,45.27905569]
[1738647973280,46.01808934,202.31,202.22,45.27905569]
[1738647973479,46.01808934,202.35,202.27,45.27905569]
[1738647973787,0.73903365,202.4,202.31,45.27905569]
[1738647973985,1.4821,202.41,202.31,45.27905569]
[1738647973986,45.27905569,202.41,202.31,45.27905569]
[1738647974310,45.27905569,202.53,202.39,20.0]
[1738647974517,45.27905569,202.53,202.44,45.27905569]
[1738647974714,45.27905569,202.49,202.42,45.27905569]
[1738647974882,45.27905569,202.47,202.4,45.27905569]
[1738647975084,45.27905569,202.45,202.38,45.27905569]
[1738647975320,45.27905569,202.41,202.32,45.27905569]
[1738647975675,45.27905569,202.45,202.36,45.27905569]
[1738647975895,45.27905569,202.43,202.35,13.41184853]
[1738647976095,45.27905569,202.41,202.32,45.27905569]
[1738647976299,45.27905569,202.39,202.3,45.27905569]
[1738647976613,45.27905569,202.47,202.38,45.27905569]
[1738647976799,0.73903365,202.46,202.38,45.27905569]
[1738647977172,46.01808934,202.47,202.38,45.27905569]
[1738647977403,45.27905569,202.45,202.36,45.27905569]
[1738647977602,45.27905569,202.52,202.42,45.27905569]
[1738647977808,45.34205569,202.54,202.46,45.27905569]
[1738647978014,0.063,202.54,202.52,45.27905569]
[1738647978193,0.063,202.54,202.53,13.41184853]
[1738647978388,0.063,202.54,202.52,50.21655569]
[1738647978708,1.0,202.72,202.52,50.21655569]
[1738647978709,47.49788934,202.72,202.57,20.0]
[1738647978914,0.73903365,202.77,202.7,45.27905569]
[1738647979205,0.063,202.83,202.75,45.27905569]
[1738647979422,0.063,202.83,202.79,45.27905569]
[1738647979594,0.063,202.83,202.81,45.27905569]
[1738647979780,45.27905569,202.9,202.81,45.27905569]
[1738647979781,14.5423006,202.9,202.81,45.27905569]
[1738647979980,45.27905569,202.85,202.76,46.01855502]
[1738647980209,45.27905569,202.85,202.74,7.14]
[1738647980210,45.27905569,202.82,202.74,77.04500161]
[1738647980379,45.27905569,202.8,202.71,24.41083937]
[1738647980582,46.01808934,202.79,202.7,45.27905569]
[1738647980795,0.73903365,202.78,202.73,45.27905569]
[1738647981118,45.27905569,202.8,202.71,45.27905569]
[1738647981287,46.01808934,202.8,202.71,45.27905569]
[1738647981490,45.27905569,202.75,202.67,45.27905569]
[1738647981704,13.5695,202.87,202.73,45.27905569]
[1738647981705,45.27905569,202.83,202.73,45.27905569]
[1738647981885,0.73903365,202.85,202.78,45.27905569]
[1738647982085,45.27905569,202.89,202.8,45.27905569]
[1738647982300,45.27905569,202.87,202.78,45.27905569]
[1738647982490,0.73903365,202.86,202.78,45.27905569]
[1738647982694,0.73903365,202.86,202.72,45.27905569]
[1738647982695,45.27905569,202.79,202.72,45.27905569]
[1738647982897,0.73903365,202.78,202.7,45.27905569]
[1738647983079,0.73903365,202.78,202.68,45.27905569]
[1738647983080,45.27905569,202.77,202.68,45.27905569]
[1738647983281,1.0,202.83,202.68,45.27905569]
[1738647983282,45.27905569,202.75,202.68,45.27905569]
[1738647983496,0.73903365,202.74,202.66,45.27905569]
[1738647983803,45.27905569,202.75,202.66,45.27905569]
[1738647984201,45.27905569,202.84,202.74,45.27905569]
[1738647984406,1.4786,202.89,202.82,45.27905569]
[1738647984704,45.27905569,202.86,202.78,45.27905569]
[1738647984914,0.73903365,202.85,202.78,45.27905569]
[1738647985208,45.27905569,202.86,202.78,45.27905569]
[1738647985507,45.27905569,202.84,202.68,45.27905569]
[1738647985715,45.27905569,202.84,202.76,45.27905569]
[1738647986005,45.27905569,202.82,202.72,45.27905569]
[1738647986206,45.27905569,202.8,202.72,45.27905569]
[1738647986423,45.27905569,202.78,202.7,45.27905569]
[1738647986718,0.73903365,202.81,202.72,45.27905569]
[1738647987018,1.4785,202.91,202.8,45.27905569]
[1738647987186,0.73903365,202.91,202.86,45.27905569]
[1738647987385,46.75715569,202.96,202.88,45.27905569]
[1738647987706,0.80203365,202.97,202.9,45.27905569]
[1738647987707,0.063,202.97,202.9,45.27905569]
[1738647988017,0.063,202.97,202.96,45.27905569]
[1738647988684,0.063,202.97,202.94,45.27905569]
[1738647988885,46.08108934,202.97,202.9,45.27905569]
[1738647989108,0.063,202.97,202.9,45.27905569]
[1738647989418,0.063,202.97,202.96,45.27905569]
[1738647989616,0.063,202.97,202.95,45.27905569]
[1738647989908,0.063,202.97,202.93,45.27905569]
[1738647990119,0.063,202.97,202.91,45.27905569]
[1738647990285,0.063,202.97,202.86,45.27905569]
[1738647990286,45.27905569,202.94,202.85,45.27905569]
[1738647990483,20.0,202.87,202.79,45.27905569]
[1738647990684,45.27905569,202.82,202.75,45.27905569]
[1738647990906,0.73903365,202.81,202.73,45.27905569]
[1738647991096,45.27905569,202.87,202.79,45.27905569]
[1738647991407,45.27905569,202.92,202.84,45.27905569]
[1738647991623,45.27905569,202.88,202.8,45.27905569]
[1738647991789,45.27905569,202.86,202.78,45.27905569]
[1738647992115,45.27905569,202.8,202.72,45.27905569]
[1738647992405,1.73903365,202.85,202.68,45.27905569]
[1738647992406,45.27905569,202.78,202.68,45.27905569]
[1738647992609,45.27905569,202.76,202.66,45.27905569]
[1738647992796,45.27905569,202.72,202.64,45.27905569]
[1738647992996,46.01808934,202.83,202.7,45.27905569]
[1738647993199,45.27905569,202.89,202.72,13.41184853]
[1738647993526,1.4781,202.95,202.88,45.27905569]
[1738647993709,2.21713365,202.95,202.88,45.27905569]
[1738647993911,0.73903365,202.94,202.86,45.27905569]
[1738647994124,45.27905569,202.87,202.8,45.27905569]
[1738647994306,45.27905569,202.93,202.86,45.27905569]
[1738647994506,45.27905569,202.91,202.77,50.21065569]
[1738647994711,45.27905569,202.84,202.74,4.9315]
[1738647994918,45.27905569,202.83,202.75,45.27905569]
[1738647995099,45.27905569,202.81,202.73,52.35905569]
[1738647995423,45.27905569,202.79,202.73,7.08]
[1738647995797,45.27905569,202.91,202.77,90.55811138]
[1738647995994,0.73903365,202.94,202.85,45.27905569]
[1738647996199,0.063,202.97,202.92,45.27905569]
[1738647996508,0.063,202.97,202.94,45.27905569]
[1738647996708,0.063,202.97,202.96,45.27905569]
[1738647997031,0.063,202.97,202.96,58.69090422]
[1738647997268,0.063,203.04,203.03,45.27905569]
[1738647997728,0.063,203.04,203.01,45.27905569]
[1738647997907,0.063,203.04,202.99,45.27905569]
[1738647998108,0.063,203.04,202.98,20.0]
[1738647998315,0.063,203.17,202.95,45.27905569]
[1738647998316,0.063,203.17,203.04,13.41184853]
[1738647998526,0.063,203.17,203.11,45.27905569]
[1738647998734,0.063,203.17,203.13,45.27905569]
[1738647998922,0.063,203.17,203.15,45.27905569]
[1738647999309,0.063,203.17,203.13,45.27905569]
[1738647999752,45.27905569,203.16,203.07,45.27905569]
[1738648000037,0.063,203.17,203.14,45.27905569]
[1738648000439,0.063,203.17,203.16,45.27905569]
[1738648000735,0.063,203.17,203.16,58.69090422]
[1738648000948,0.063,203.26,203.18,13.41184853]
[1738648001156,0.063,203.26,203.25,58.81639422]
[1738648001327,0.0001,203.26,203.25,59.55401559]
[1738648001528,45.27905569,203.45,203.29,21.12549]
[1738648001730,46.81645569,203.47,203.4,45.27905569]
[1738648001966,0.063,203.47,203.4,45.27905569]
[1738648002173,0.063,203.47,203.45,45.27905569]
[1738648002839,0.063,203.47,203.46,18.32674853]
[1738648003028,0.063,203.47,203.45,45.27905569]
[1738648003227,0.063,203.47,203.45,50.19405569]
[1738648003453,0.063,203.47,203.45,50.93096067]
[1738648003657,45.27905569,203.65,203.51,0.12549]
[1738648003828,45.27905569,203.65,203.47,44.41184853]
[1738648003829,45.27905569,203.61,203.52,45.27905569]
[1738648004028,45.27905569,203.59,203.5,45.27905569]
[1738648004353,46.01808934,203.65,203.56,45.27905569]
[1738648004557,45.27905569,203.65,203.56,45.27905569]
[1738648004850,45.27905569,203.65,203.4,45.27905569]
[1738648004851,45.27905569,203.57,203.46,45.27905569]
[1738648005045,45.27905569,203.61,203.52,45.27905569]
[1738648005248,45.27905569,203.61,203.46,45.27905569]
[1738648005249,45.27905569,203.55,203.46,45.27905569]
[1738648005433,45.27905569,203.53,203.44,45.27905569]
[1738648005637,45.27905569,203.49,203.4,45.27905569]
[1738648005833,1.0,203.55,203.42,45.27905569]
[1738648005834,45.27905569,203.51,203.42,45.27905569]
[1738648006032,45.27905569,203.57,203.48,45.27905569]
[1738648006253,45.27905569,203.57,203.44,13.41184853]
[1738648006254,45.27905569,203.61,203.52,45.27905569]
[1738648006448,0.73903365,203.6,203.52,45.27905569]
[1738648006647,45.27905569,203.65,203.56,45.27905569]
[1738648006862,45.27905569,203.67,203.58,45.27905569]
[1738648007160,45.27905569,203.69,203.6,45.27905569]
[1738648007355,46.01808934,203.69,203.6,45.27905569]
[1738648007528,45.27905569,203.64,203.54,45.27905569]
[1738648007732,0.063,203.73,203.62,45.27905569]
[1738648007951,1.5356,203.72,203.66,45.27905569]
[1738648008156,0.063,203.72,203.66,45.27905569]
[1738648008457,0.063,203.72,203.7,45.27905569]
[1738648009054,0.063,203.72,203.71,0.73604825]
[1738648009229,45.27905569,203.87,203.71,0.73604825]
[1738648009431,45.27905569,203.83,203.73,45.27905569]
[1738648009672,45.27905569,203.87,203.77,45.27905569]
[1738648009844,45.27905569,203.8,203.72,45.27905569]
[1738648010158,45.27905569,203.88,203.79,45.27905569]
[1738648010534,14.0398,203.98,203.76,50.18655569]
[1738648010535,46.81305569,203.94,203.85,45.27905569]
[1738648010740,1.5341,203.93,203.88,45.27905569]
[1738648010950,0.063,203.93,203.88,45.27905569]
[1738648011251,0.063,203.93,203.92,45.27905569]
[1738648011446,0.063,203.93,203.9,45.27905569]
[1738648011639,0.063,203.93,203.83,7.94]
[1738648011640,1.5341,203.93,203.86,45.27905569]
[1738648011840,0.063,203.93,203.88,45.27905569]
[1738648012035,0.063,203.93,203.9,45.27905569]
[1738648012277,1.5341,203.93,203.86,45.27905569]
[1738648012433,0.063,203.93,203.86,45.27905569]
[1738648012634,45.27905569,203.92,203.84,45.27905569]
[1738648012836,45.34205569,203.93,203.84,45.27905569]
[1738648013046,45.27905569,203.91,203.83,45.27905569]
[1738648013251,45.27905569,203.91,203.76,45.27905569]
[1738648013252,45.27905569,203.89,203.81,45.27905569]
[1738648013457,45.27905569,203.87,203.79,45.27905569]
[1738648013664,45.27905569,203.85,203.77,45.27905569]
[1738648013962,45.27905569,203.79,203.71,45.27905569]
[1738648014135,5.2115,203.94,203.79,13.41184853]
[1738648014333,1.534,203.94,203.88,45.27905569]
[1738648014751,0.063,203.94,203.9,45.27905569]
[1738648014952,0.063,203.94,203.92,45.27905569]
[1738648015446,1.534,203.94,203.88,45.27905569]
[1738648015631,45.27905569,203.92,203.84,45.27905569]
[1738648015842,46.81305569,203.94,203.86,45.27905569]
[1738648016041,0.063,203.94,203.88,45.27905569]
[1738648016362,1.4712,203.91,203.84,45.27905569]
[1738648016661,0.063,203.94,203.88,45.27905569]
[1738648016836,0.063,203.94,203.92,45.27905569]
[1738648017041,1.534,203.94,203.9,45.27905569]
[1738648017239,1.5341,203.93,203.86,45.27905569]
[1738648017459,1.4711,203.92,203.86,45.27905569]
[1738648017660,45.27905569,203.89,203.82,45.27905569]
[1738648017971,1.4711,203.92,203.85,13.41184853]
[1738648018146,0.063,203.93,203.91,13.41184853]
[1738648018457,0.063,203.93,203.92,45.27905569]
[1738648018663,0.063,203.93,203.92,58.69090422]
[1738648018860,0.063,203.93,203.92,105.22093991]
[1738648019069,0.063,203.93,203.92,104.22093991]
[1738648019270,0.063,204.02,204.01,20.0]
[1738648019572,0.063,204.14,204.12,0.25098]
[1738648019744,0.063,204.2,204.19,45.27905569]
[1738648019945,0.063,204.24,204.22,33.41184853]
[1738648020280,0.063,204.24,204.22,33.53733853]
[1738648020471,0.063,204.29,204.26,0.12549]
[1738648020766,0.063,204.29,204.28,103.96995991]
[1738648020972,0.063,204.29,204.28,58.69090422]
[1738648021152,0.063,204.29,204.28,105.70383386]
[1738648021354,0.03,204.31,204.3,21.0]
[1738648021552,0.063,204.36,204.34,58.69090422]
[1738648021771,0.03,204.43,204.34,91.55811138]
[1738648021962,0.03,204.43,204.42,45.27905569]
[1738648022165,0.03,204.43,204.42,46.27905569]
[1738648022468,1.4664,204.57,204.54,20.0]
[1738648022704,1.4661,204.62,204.55,45.27905569]
[1738648022849,1.466,204.64,204.57,45.27905569]
[1738648023245,1.466,204.64,204.59,45.27905569]
[1738648023656,45.27905569,204.63,204.55,45.27905569]
[1738648023873,45.27905569,204.61,204.53,45.27905569]
[1738648024069,0.73903365,204.63,204.55,45.27905569]
[1738648024271,45.27905569,204.61,204.53,45.27905569]
[1738648024576,45.27905569,204.59,204.51,45.27905569]
[1738648024771,46.01808934,204.59,204.49,45.27905569]
[1738648024967,20.0,204.52,204.47,45.27905569]
[1738648025163,45.27905569,204.51,204.42,45.27905569]
[1738648025471,45.27905569,204.47,204.4,45.27905569]
[1738648025682,45.27905569,204.53,204.45,45.27905569]
[1738648025866,51.14988934,204.6,204.51,45.27905569]
[1738648026069,1.4662,204.6,204.57,45.27905569]
[1738648026281,45.27905569,204.7,204.59,45.27905569]
[1738648026473,2.20463365,204.69,204.61,45.27905569]
[1738648026782,5.86863365,204.69,204.61,45.27905569]
[1738648027080,45.27905569,204.64,204.55,45.27905569]
[1738648027379,45.40454569,204.59,204.48,45.27905569]
[1738648027578,46.01808934,204.62,204.53,45.27905569]
[1738648027794,46.01808934,204.62,204.51,45.27905569]
[1738648027795,45.27905569,204.6,204.51,45.27905569]
[1738648027953,0.73903365,204.62,204.39,45.27905569]
[1738648027954,45.27905569,204.58,204.49,45.27905569]
[1738648028301,0.73903365,204.58,204.51,45.27905569]
[1738648028496,21.4664,204.57,204.51,45.27905569]
[1738648028709,46.14357934,204.56,204.48,45.27905569]
[1738648028857,0.03,204.57,204.54,45.27905569]
[1738648029191,0.03,204.57,204.56,45.27905569]
[1738648029760,0.03,204.57,204.56,90.55811138]
[1738648030065,0.03,204.57,204.56,45.27905569]
[1738648030263,0.03,204.57,204.56,90.55811138]
[1738648030562,0.03,204.57,204.56,109.59148112]
[1738648030864,0.73903365,204.72,204.59,1.0]
[1738648031177,0.03,204.78,204.7,45.27905569]
[1738648031381,45.30905569,204.78,204.68,45.27905569]
[1738648031556,45.27905569,204.74,204.66,45.27905569]
[1738648031882,13.53733853,204.67,204.57,45.27905569]
[1738648032077,0.73903365,204.73,204.57,45.27905569]
[1738648032078,46.01808934,204.66,204.57,45.27905569]
[1738648032384,1.73903365,204.73,204.54,33.66282853]
[1738648032563,0.73903365,204.73,204.6,13.41184853]
[1738648032763,0.73903365,204.73,204.58,0.12549]
[1738648032764,0.73903365,204.73,204.67,45.27905569]
[1738648032966,0.73903365,204.73,204.61,13.41184853]
[1738648032967,0.03,204.78,204.71,45.27905569]
[1738648033164,0.03,204.78,204.66,45.27905569]
[1738648033165,0.03,204.78,204.77,45.27905569]
[1738648034074,0.15,205.08,204.94,1.0]
[1738648034379,1.462,205.19,205.07,45.27905569]
[1738648034578,1.23663291,205.33,205.03,45.27905569]
[1738648034579,45.27905569,205.24,205.14,45.27905569]